bitfinex/quotes_ETHUSD_20241130
["timestamp","ask_amount","ask_price","bid_price","bid_amount"]
[1732949506423,1.16086874,3707.8,3707.4,2.6973]
[1732949506640,0.7615,3707.8,3707.2,2.69741]
[1732949507136,0.7615,3707.8,3707.3,2.69732]
[1732949507853,0.7615,3707.8,3707.4,2.69725]
[1732949508005,0.7615,3707.8,3707.3,2.69732]
[1732949508208,0.7996,3708.6,3707.5,0.55]
[1732949508407,0.41823788,3709.6,3707.5,0.55]
[1732949508408,2.69599,3709.3,3708.6,2.6964]
[1732949508646,2.69585,3709.4,3707.9,2.72384371]
[1732949508843,0.7996,3709.0,3706.4,2.698]
[1732949509064,2.69686,3708.1,3707.2,2.69739]
[1732949509248,2.69688,3708.0,3707.2,2.69739]
[1732949509566,0.539374,3707.9,3707.2,2.69739]
[1732949509869,3.236334,3707.9,3707.0,2.69759]
[1732949510069,2.69722,3707.6,3706.6,2.69782]
[1732949510369,3.49664,3707.8,3706.8,2.69773]
[1732949510370,2.69708,3707.7,3706.8,2.69773]
[1732949510867,2.69708,3707.7,3706.9,2.69766]
[1732949511031,0.6733094,3707.6,3706.9,2.69766]
[1732949511224,0.6733094,3707.6,3706.4,0.7573]
[1732949511439,2.69729,3707.5,3706.7,2.69778]
[1732949511671,2.69708,3707.7,3706.7,2.69778]
[1732949511875,2.69731,3707.4,3706.7,2.69778]
[1732949512384,0.7996,3707.8,3706.5,3.24795]
[1732949512582,2.6975,3707.2,3706.5,0.55]
[1732949512881,0.7996,3707.1,3706.5,0.55]
[1732949513257,0.7996,3707.1,3706.5,3.24795]
[1732949514898,2.6972,3707.6,3706.7,2.69779]
[1732949515058,0.539421,3707.5,3706.7,2.69779]
[1732949515461,3.236651,3707.5,3706.7,2.69779]
[1732949516161,0.539421,3707.5,3706.8,2.69773]
[1732949516360,2.69702,3707.8,3706.8,2.69773]
[1732949516562,0.7996,3708.0,3706.8,2.69773]
[1732949516563,2.6971,3707.7,3706.8,2.69773]
[1732949516793,5.0,3707.1,3706.8,2.69773]
[1732949516950,5.0,3707.1,3706.7,0.55]
[1732949517554,5.0,3707.1,3706.7,3.24776]
[1732949517887,5.0,3707.1,3706.9,2.69766]
[1732949518292,5.0,3707.1,3706.7,0.55]
[1732949518490,5.5,3707.1,3706.6,2.69787]
[1732949518993,5.0,3707.1,3706.7,2.6978]
[1732949519178,5.0,3707.1,3706.5,0.55]
[1732949519377,5.0,3707.1,3707.0,2.69759]
[1732949520951,5.0,3707.1,3706.4,0.7573]
[1732949520952,5.0,3707.1,3706.8,2.69773]
[1732949522163,5.0,3707.1,3706.8,2.69772]
[1732949522779,5.0,3707.1,3706.7,0.55]
[1732949522954,5.0,3707.1,3706.7,3.2478]
[1732949523399,5.0,3707.1,3706.6,0.55]
[1732949523556,5.0,3707.1,3706.5,2.69795]
[1732949524651,5.0,3707.1,3706.6,2.69787]
[1732949526593,5.0,3707.1,3706.4,3.45533]
[1732949526751,5.769746,3707.1,3706.4,3.45533]
[1732949527706,5.769746,3707.1,3706.5,2.69793]
[1732949528575,8.467276,3707.1,3706.4,0.7573]
[1732949528778,8.467276,3707.1,3706.4,0.55]
[1732949529182,0.7976,3706.2,3705.7,0.1599467]
[1732949529379,3.49607,3705.8,3705.7,0.1599467]
[1732949529982,2.69918,3704.9,3704.1,2.6997]
[1732949530281,2.69897,3705.2,3704.2,0.2697]
[1732949530282,2.69938,3704.6,3704.2,0.2697]
[1732949530488,3.49681,3704.8,3704.2,0.2697]
[1732949530666,0.349681,3704.7,3704.2,0.2697]
[1732949531239,2.69943,3704.5,3704.2,0.2697]
[1732949531393,0.7976,3704.8,3704.2,0.2697]
[1732949531590,5.57898325,3705.9,3704.2,0.2697]
[1732949531591,3.49657,3705.2,3704.4,2.69948]
[1732949532089,0.7976,3705.6,3705.1,2.69897]
[1732949532292,0.7976,3705.6,3704.9,2.69905]
[1732949532494,0.7976,3705.6,3705.2,2.69889]
[1732949533028,0.7976,3705.6,3705.0,2.69904]
[1732949533389,0.7976,3705.6,3705.2,2.6989]
[1732949533590,0.7976,3706.0,3705.4,2.69873]
[1732949533787,0.7976,3706.0,3705.2,2.6989]
[1732949533991,0.7976,3706.0,3705.3,0.02698444]
[1732949534204,0.7976,3706.5,3705.7,2.69851]
[1732949534492,3.047579,3706.4,3705.3,2.69878]
[1732949534811,2.69811,3706.3,3705.5,2.69864]
[1732949535024,2.69811,3706.3,3705.6,2.69861]
[1732949535223,0.7976,3706.5,3705.6,2.69861]
[1732949535428,2.69774,3706.8,3705.3,1.3813]
[1732949535429,0.7976,3706.8,3705.3,1.3813]
[1732949535758,0.7976,3706.8,3706.2,2.69814]
[1732949536053,1.34169061,3706.8,3706.2,2.69814]
[1732949536216,1.34169061,3706.8,3706.2,2.69811]
[1732949537251,1.34169061,3706.8,3706.4,2.698]
[1732949537544,0.8467276,3707.0,3706.6,2.69788]
[1732949537722,0.55228996,3706.9,3706.6,2.69788]
[1732949537918,0.55228996,3706.9,3706.2,2.69811]
[1732949538223,0.55228996,3706.9,3706.1,0.8313]
[1732949538224,0.55228996,3706.9,3706.3,2.69805]
[1732949538436,0.90965476,3706.8,3706.3,2.69805]
[1732949539014,0.55228996,3706.9,3706.4,0.2697]
[1732949539422,5.0,3707.1,3706.5,0.02697785]
[1732949539633,5.0,3707.1,3706.4,0.2697]
[1732949539840,5.0,3707.1,3706.9,2.69764]
[1732949540211,5.0,3707.1,3706.8,0.2697]
[1732949540408,0.5,3707.0,3706.8,0.2697]
[1732949541051,3.1976,3707.0,3706.8,0.2697]
[1732949541344,2.69779,3706.8,3706.0,2.96802]
[1732949542751,2.69779,3706.8,3706.2,0.2697]
[1732949543149,2.69797,3706.5,3706.2,0.2697]
[1732949543351,5.935561,3706.5,3706.2,0.2697]
[1732949543583,3.237541,3706.5,3706.2,0.2697]
[1732949543749,2.69803,3706.4,3705.7,0.55]
[1732949544137,2.69828,3706.1,3705.4,2.6987]
[1732949544449,3.49576,3706.3,3705.3,2.69878]
[1732949544651,0.6733301,3706.2,3705.5,2.69866]
[1732949544962,2.69827,3706.1,3705.3,2.6988]
[1732949545462,2.69834,3706.0,3705.3,2.6988]
[1732949545775,2.69837,3706.0,3705.2,2.6989]
[1732949546080,2.69852,3705.8,3705.0,2.69905]
[1732949546316,3.238204,3705.8,3705.0,2.69905]
[1732949546783,0.7976,3705.7,3704.9,2.69906]
[1732949546937,0.7976,3705.7,3705.2,2.69888]
[1732949547475,0.7976,3705.7,3704.9,2.69906]
[1732949547772,0.7976,3705.7,3705.1,2.69894]
[1732949548197,2.46137435,3705.3,3704.0,0.8215]
[1732949548353,0.815,3704.7,3704.1,2.69965]
[1732949548553,0.815,3704.7,3703.4,0.8215]
[1732949548738,0.815,3704.7,3704.1,2.69969]
[1732949549151,1.166419,3704.7,3704.1,2.69969]
[1732949549899,1.166419,3704.7,3704.1,2.6997]
[1732949550181,1.166419,3704.7,3704.3,2.69949]
[1732949550478,0.815,3704.7,3704.4,2.69949]
[1732949550677,0.815,3704.7,3704.2,2.69962]
[1732949550885,0.815,3704.7,3704.3,2.69955]
[1732949551241,0.815,3704.7,3704.0,2.69977]
[1732949551441,0.815,3704.7,3703.8,2.69988]
[1732949551642,1.436319,3704.7,3704.1,2.69969]
[1732949551838,1.436319,3704.7,3703.9,0.02699473]
[1732949551839,4.135649,3704.7,3703.9,2.69984]
[1732949552686,0.621319,3704.7,3703.5,0.02699482]
[1732949552886,0.815,3705.0,3703.7,0.55]
[1732949553094,2.69867,3705.6,3704.5,2.69939]
[1732949553255,0.8050196,3705.7,3704.6,2.69927]
[1732949553256,3.5137,3705.5,3704.6,2.69927]
[1732949553586,3.5137,3705.5,3704.5,2.69939]
[1732949553753,0.39172774,3705.4,3705.0,2.69904]
[1732949553959,0.39172774,3705.4,3704.8,2.69914]
[1732949554160,0.815,3705.5,3704.8,2.69914]
[1732949554379,0.815,3705.5,3704.6,0.8215]
[1732949554380,0.815,3705.5,3705.0,2.69902]
[1732949554949,0.815,3705.5,3704.6,1.0912]
[1732949555155,0.815,3705.5,3705.1,2.69897]
[1732949555392,0.815,3705.5,3704.9,2.69911]
[1732949555611,0.815,3705.5,3703.3,2.70025]
[1732949555612,2.69885,3705.3,3704.4,2.69942]
[1732949555747,2.69885,3705.3,3704.6,2.69933]
[1732949555954,1.48938062,3705.5,3704.4,2.96912]
[1732949556293,2.69893,3705.2,3704.5,2.6994]
[1732949557262,2.69876,3705.4,3704.6,2.69931]
[1732949557480,2.69884,3705.3,3704.4,2.96918]
[1732949558569,2.69901,3705.1,3704.4,0.2697]
[1732949559384,2.69901,3705.1,3704.4,2.96917]
[1732949559557,3.51369,3705.5,3704.5,2.69936]
[1732949559772,1.32753712,3705.5,3704.4,0.2697]
[1732949560087,2.69898,3705.1,3704.5,2.6994]
[1732949560291,2.69898,3705.1,3704.3,0.2697]
[1732949560493,0.815,3704.9,3704.3,0.2697]
[1732949561506,0.815,3704.9,3704.3,2.96924]
[1732949562037,3.51385,3705.3,3704.4,2.69949]
[1732949562344,2.69898,3705.1,3704.4,2.69949]
[1732949562697,0.815,3705.3,3704.3,0.2697]
[1732949562921,2.69923,3704.8,3704.3,0.2697]
[1732949563094,2.69915,3704.9,3704.3,0.2697]
[1732949563954,2.6992,3704.8,3704.0,2.96944]
[1732949564117,2.69924,3704.8,3704.0,2.96944]
[1732949564720,2.69935,3704.6,3704.0,2.96944]
[1732949565050,0.815,3704.7,3704.0,2.96944]
[1732949565256,0.815,3704.7,3704.2,2.69957]
[1732949566449,0.815,3704.7,3703.5,2.70008]
[1732949566450,2.69948,3704.5,3703.9,0.2697]
[1732949566854,2.6995,3704.4,3703.9,0.2697]
[1732949567162,3.32088,3704.4,3703.9,0.2697]
[1732949567452,0.62138,3704.4,3703.7,2.7]
[1732949567761,0.815,3704.7,3703.8,0.2697]
[1732949567918,2.69959,3704.3,3703.8,0.2697]
[1732949568531,0.815,3704.7,3703.8,0.2697]
[1732949568532,2.69945,3704.5,3703.8,2.9696]
[1732949568828,2.69954,3704.4,3703.6,0.2697]
[1732949569058,2.69957,3704.3,3703.7,2.7]
[1732949570658,0.815,3704.7,3703.6,0.2697]
[1732949570870,2.69991,3703.9,3703.6,0.2697]
[1732949571189,2.69995,3703.8,3703.6,0.2697]
[1732949571690,2.69995,3703.8,3703.1,2.97018]
[1732949571982,0.269991,3703.9,3703.1,2.97018]
[1732949572187,2.69995,3703.8,3703.2,0.2698]
[1732949572392,2.70012,3703.6,3703.2,0.2698]
[1732949572558,3.4983,3703.5,3703.2,0.2698]
[1732949572887,2.70029,3703.3,3703.2,0.2698]
[1732949573086,0.7981,3703.5,3702.7,2.97052]
[1732949573263,0.349822,3703.4,3702.7,2.97052]
[1732949575473,3.49826,3703.5,3702.7,0.2698]
[1732949575679,0.7981,3703.5,3702.8,2.97039]
[1732949575855,0.7981,3703.5,3702.9,2.70058]
[1732949576802,2.0463512,3704.4,3703.0,0.02700164]
[1732949576803,3.74904453,3704.3,3703.0,0.02700164]
[1732949577101,3.74904453,3704.3,3702.9,0.7844]
[1732949577102,0.7981,3703.9,3702.9,1.0542]
[1732949577310,2.70043,3703.2,3701.9,0.1599467]
[1732949577512,0.7981,3703.1,3702.4,2.70093]
[1732949577796,0.7981,3703.1,3702.7,2.70071]
[1732949577962,0.7981,3703.1,3702.5,2.70087]
[1732949578159,0.7981,3703.1,3701.9,0.1599467]
[1732949578160,0.7981,3703.0,3701.9,0.1599467]
[1732949578359,3.49864,3703.0,3702.2,2.70108]
[1732949578600,0.7981,3703.0,3702.0,2.70124]
[1732949578901,2.70104,3702.3,3701.9,0.1599467]
[1732949579205,2.0463512,3702.9,3701.9,0.1599467]
[1732949579206,0.7981,3702.2,3701.9,0.1599467]
[1732949579555,0.7981,3702.6,3701.9,2.8612567]
[1732949579869,3.848783,3702.6,3701.9,2.8612567]
[1732949580080,1.147983,3702.6,3701.9,2.8612567]
[1732949580396,0.7981,3702.6,3702.1,2.7011]
[1732949580608,0.7981,3702.6,3702.0,2.70123]
[1732949581103,0.7981,3702.6,3702.2,2.70106]
[1732949581403,0.7981,3703.0,3702.4,2.70093]
[1732949581700,0.7981,3703.0,3702.5,2.70083]
[1732949581858,1.23703911,3703.0,3701.9,0.1599467]
[1732949582058,0.7981,3703.0,3701.9,0.1599467]
[1732949582271,2.0463512,3702.8,3701.9,0.1599467]
[1732949582510,2.70091,3702.5,3701.9,0.1599467]
[1732949583790,3.49883,3702.7,3701.9,0.1599467]
[1732949584046,2.70095,3702.4,3701.9,0.1599467]
[1732949584207,0.270095,3702.3,3701.9,0.1599467]
[1732949584589,0.270095,3702.3,3701.9,2.8612567]
[1732949585303,0.270095,3702.3,3701.9,0.1599467]
[1732949585938,0.7981,3702.7,3701.9,0.1599467]
[1732949585939,0.7981,3702.7,3702.3,2.70099]
[1732949586193,0.42904464,3704.3,3702.4,0.02700928]
[1732949586194,2.0463512,3703.6,3702.4,0.02700928]
[1732949586396,0.7847,3703.5,3702.5,0.8151]
[1732949586629,1.18720916,3703.5,3703.1,2.70038]
[1732949586792,0.7847,3703.5,3703.1,2.70038]
[1732949587135,0.7847,3703.5,3702.9,2.70058]
[1732949587639,0.7847,3703.5,3703.0,2.70049]
[1732949587850,0.7847,3703.5,3703.1,2.70041]
[1732949588051,0.54039156,3703.6,3702.6,0.02700314]
[1732949588254,0.54039156,3703.6,3702.5,0.8151]
[1732949588255,0.40249516,3703.6,3702.5,0.8151]
[1732949588423,2.7,3703.7,3703.0,2.70051]
[1732949588628,2.7,3703.7,3702.7,2.70068]
[1732949588629,2.70016,3703.5,3702.8,2.70064]
[1732949588827,2.70016,3703.5,3702.9,0.2698]
[1732949589029,0.8183,3703.8,3702.6,2.7008]
[1732949589229,2.70014,3703.5,3702.6,2.7008]
[1732949589411,2.70029,3703.3,3702.5,0.2698]
[1732949589611,2.70029,3703.3,3702.6,2.70074]
[1732949590016,0.8183,3703.2,3702.5,0.2698]
[1732949590254,2.70052,3703.0,3702.5,0.2698]
[1732949590436,3.51873,3703.2,3702.5,0.2698]
[1732949590641,0.67754991,3703.1,3702.5,0.2698]
[1732949591015,0.67754991,3703.1,3702.7,2.7007]
[1732949591217,0.8183,3703.2,3702.7,2.7007]
[1732949591557,0.8183,3703.2,3702.1,0.2698]
[1732949591760,0.8183,3703.2,3702.0,0.8065]
[1732949591916,2.70046,3703.1,3702.1,2.70116]
[1732949592258,2.70059,3702.9,3702.1,2.70116]
[1732949592559,0.540105,3702.8,3702.0,2.70122]
[1732949592866,0.540105,3702.8,3702.1,2.70111]
[1732949593075,0.8183,3702.6,3701.9,2.8612267]
[1732949593218,0.8183,3702.6,3702.0,2.70124]
[1732949593760,0.8183,3702.6,3702.1,2.70111]
[1732949594075,1.2242135,3702.6,3702.1,2.70111]
[1732949594362,2.70095,3702.4,3701.9,0.1599467]
[1732949594519,3.9250835,3702.6,3701.9,0.1599467]
[1732949594860,2.7009,3702.5,3701.9,0.1599467]
[1732949595083,0.66258435,3702.4,3701.9,0.1599467]
[1732949595414,3.51938,3702.3,3701.9,0.1599467]
[1732949595819,0.54405446,3702.5,3701.9,0.1599467]
[1732949596072,0.8183,3702.4,3701.9,0.1599467]
[1732949596416,0.8183,3702.4,3701.9,2.8612567]
[1732949597353,0.8183,3702.4,3701.9,0.1599467]
[1732949597513,0.40632845,3702.3,3701.9,0.1599467]
[1732949597864,2.70124,3702.0,3701.9,0.1599467]
[1732949598066,3.51954,3702.0,3701.9,0.1599467]
[1732949600218,0.8183,3702.0,3701.9,0.1599467]
[1732949600416,1.22462845,3702.3,3701.9,2.8612567]
[1732949600672,0.35966872,3702.2,3701.9,2.8612567]
[1732949600826,0.35966872,3702.2,3702.0,2.70123]
[1732949601020,0.8183,3702.3,3702.0,2.70123]
[1732949601357,0.8183,3702.3,3701.9,0.1599467]
[1732949602233,2.7012,3702.1,3701.9,0.1599467]
[1732949602431,0.8183,3702.3,3701.9,0.1599467]
[1732949603065,2.70117,3702.1,3701.9,0.1599467]
[1732949603221,4.14159,3702.0,3701.9,0.1599467]
[1732949603420,1.44035,3702.0,3701.9,0.1599467]
[1732949604115,1.0694873,3702.4,3701.9,0.1599467]
[1732949604318,0.8183,3702.4,3701.9,0.1599467]
[1732949604955,0.8183,3702.4,3701.9,2.8612367]
[1732949605157,0.8183,3702.4,3701.9,0.1599467]
[1732949605362,3.5193,3702.4,3701.9,0.1599467]
[1732949605563,0.43145634,3702.3,3701.9,0.1599467]
[1732949606175,2.7011,3702.2,3701.9,0.1599467]
[1732949606671,2.70124,3702.0,3701.9,0.1599467]
[1732949607248,2.7011,3702.2,3701.9,0.1599467]
[1732949607432,0.8183,3702.4,3701.9,0.1599467]
[1732949607433,3.51926,3702.4,3701.9,0.1599467]
[1732949607633,0.69830162,3702.3,3701.9,0.1599467]
[1732949607871,2.70118,3702.1,3701.9,0.1599467]
[1732949608060,2.70108,3702.3,3701.9,0.1599467]
[1732949608228,2.95286042,3702.2,3701.9,0.1599467]
[1732949608432,0.25171042,3702.1,3701.9,0.1599467]
[1732949608829,2.70124,3702.0,3701.9,0.1599467]
[1732949609171,4.30097428,3702.0,3701.9,0.1599467]
[1732949609376,1.59973428,3702.0,3701.9,0.1599467]
[1732949609531,1.34801004,3702.0,3701.9,0.1599467]
[1732949610077,0.7826,3702.0,3701.9,0.1599467]
[1732949610790,3.48384,3702.0,3701.9,0.1599467]
[1732949611002,0.7826,3702.0,3701.9,0.1599467]
[1732949611157,0.2516803,3702.2,3701.9,0.1599467]
[1732949611358,0.29527103,3702.1,3701.9,0.1599467]
[1732949611687,2.70111,3702.2,3701.9,0.1599467]
[1732949612586,0.25164722,3702.1,3701.9,0.1599467]
[1732949612756,1.03424722,3702.3,3701.9,0.1599467]
[1732949613592,0.7826,3702.3,3701.9,0.1599467]
[1732949613895,0.7826,3702.3,3701.9,2.8612367]
[1732949614250,0.42791817,3702.2,3701.9,0.1599467]
[1732949614492,0.7826,3702.3,3701.9,0.1599467]
[1732949615747,3.48369,3702.3,3701.9,0.1599467]
[1732949616088,0.25127276,3702.2,3701.9,0.1599467]
[1732949616246,0.7826,3702.3,3701.9,0.1599467]
[1732949616889,0.25128357,3702.3,3702.1,2.70115]
[1732949617062,2.70089,3702.5,3701.9,2.8612467]
[1732949617393,1.09957594,3702.4,3701.9,0.1599467]
[1732949617689,1.09957594,3702.4,3701.9,2.8612467]
[1732949617911,0.84818783,3702.4,3702.0,2.7012]
[1732949618117,1.56874278,3702.6,3702.2,2.70107]
[1732949618615,1.56874278,3702.6,3702.1,2.70116]
[1732949618816,0.25139268,3702.6,3702.0,0.8088]
[1732949619034,0.25139268,3702.6,3702.2,2.70103]
[1732949619242,0.25139268,3702.5,3701.9,0.1599467]
[1732949619380,0.25139268,3702.4,3701.9,0.1599467]
[1732949619715,0.25139268,3702.4,3701.9,2.8612067]
[1732949619912,0.25139268,3702.4,3701.9,0.1599467]
[1732949620119,0.25139268,3702.3,3701.9,0.1599467]
[1732949620323,3.20072339,3702.5,3701.9,0.1599467]
[1732949620324,0.25139268,3702.4,3701.9,0.1599467]
[1732949620480,0.63686992,3702.3,3701.9,0.1599467]
[1732949620820,3.08651724,3702.3,3701.9,0.1599467]
[1732949621117,0.25180495,3702.2,3701.9,0.1599467]
[1732949621312,2.95302495,3702.1,3701.9,0.1599467]
[1732949621612,0.25180495,3702.0,3701.9,0.1599467]
[1732949621776,0.90883708,3702.0,3701.9,0.1599467]
[1732949621973,3.61007708,3702.0,3701.9,0.1599467]
[1732949622176,4.01302495,3702.0,3701.9,0.1599467]
[1732949623890,0.90883708,3702.0,3701.9,0.1599467]
[1732949624610,3.61007708,3702.0,3701.9,0.1599467]
[1732949624811,4.01307558,3702.0,3701.9,0.1599467]
[1732949625832,4.79567558,3702.0,3701.9,0.1599467]
[1732949627610,5.92078212,3702.0,3701.9,0.1599467]
[1732949627808,4.79546111,3702.0,3701.9,0.1599467]
[1732949628235,5.9261654,3702.0,3701.9,0.1599467]
[1732949628796,4.79546111,3702.0,3701.9,0.1599467]
[1732949629044,5.9261654,3702.0,3701.9,0.1599467]
[1732949629260,5.9258694,3702.0,3701.9,0.1599467]
[1732949629616,3.50377,3701.3,3700.5,0.8088]
[1732949629819,2.70189,3701.1,3700.5,0.8088]
[1732949630044,0.25176499,3701.0,3700.5,0.8088]
[1732949630658,2.70217,3700.8,3700.5,0.8088]
[1732949631168,2.70225,3700.7,3700.2,0.7525]
[1732949631332,3.28290829,3700.7,3700.2,0.7525]
[1732949631665,2.70235,3700.5,3700.2,0.7525]
[1732949631830,2.70235,3700.5,3700.0,25.0]
[1732949632575,0.802,3700.6,3700.0,25.0]
[1732949632576,3.50431,3700.6,3700.0,25.0]
[1732949632937,2.70244,3700.4,3700.0,25.0]
[1732949633762,3.50427,3700.6,3700.0,25.0]
[1732949633978,2.70239,3700.5,3700.0,25.0]
[1732949634148,0.61313995,3700.4,3700.0,25.0]
[1732949634345,2.62700949,3700.7,3700.0,25.0]
[1732949634346,3.50462,3700.1,3700.0,23.9460583]
[1732949634681,2.0463512,3700.3,3700.0,23.9460583]
[1732949635266,2.70262,3700.1,3700.0,23.9460583]
[1732949635437,2.70255,3700.2,3700.0,23.9460583]
[1732949635654,2.0463512,3700.3,3700.0,23.9460583]
[1732949635879,2.0463512,3700.7,3700.2,0.7525]
[1732949636078,2.0463512,3700.7,3700.0,23.9460583]
[1732949636443,0.54503823,3700.7,3700.1,0.7525]
[1732949637035,2.8483512,3700.6,3700.0,23.9460583]
[1732949637286,4.7489312,3700.2,3700.0,23.9460583]
[1732949637574,2.0463512,3700.2,3700.0,23.2291093]
[1732949637790,2.0463512,3700.6,3700.1,0.7525]
[1732949637933,0.54503823,3700.7,3700.1,0.7525]
[1732949637934,3.24722823,3700.7,3700.1,0.7525]
[1732949638136,0.54503823,3700.7,3700.1,0.7525]
[1732949638653,0.54503823,3700.7,3700.2,2.7025]
[1732949639092,1.15458917,3700.7,3700.1,0.7525]
[1732949639283,3.85682917,3700.7,3700.1,0.7525]
[1732949639577,2.70227,3700.6,3700.1,0.7525]
[1732949640594,2.70234,3700.5,3700.1,0.7525]
[1732949641576,3.24725823,3700.7,3700.1,0.7525]
[1732949641862,2.70227,3700.6,3700.1,0.7525]
[1732949642176,3.24724823,3700.7,3700.1,0.7525]
[1732949642499,0.54503823,3700.7,3700.1,0.7525]
[1732949642994,0.54503823,3700.7,3700.1,3.45507]
[1732949643201,0.54503823,3700.7,3700.2,2.70253]
[1732949643500,2.70191,3701.1,3700.4,2.70234]
[1732949643870,3.50375,3701.3,3700.4,2.70234]
[1732949644141,0.802,3701.3,3700.1,0.7525]
[1732949644402,2.70226,3700.6,3700.0,23.2291093]
[1732949644607,3.322978,3700.5,3700.0,23.2291093]
[1732949644808,2.70234,3700.5,3700.0,23.2291093]
[1732949645309,0.802,3700.7,3700.0,25.9318093]
[1732949645459,2.7024,3700.5,3700.1,0.7525]
[1732949645653,2.70242,3700.4,3700.1,0.7525]
[1732949645854,2.70256,3700.2,3700.0,23.2291093]
[1732949646173,2.70242,3700.4,3700.0,23.2291093]
[1732949646358,2.7025,3700.3,3700.0,23.2291093]
[1732949646553,2.0463512,3700.6,3700.0,23.2291093]
[1732949646795,2.70262,3700.1,3700.0,23.2291093]
[1732949647670,3.50462,3700.1,3700.0,23.2291093]
[1732949648390,3.50462,3700.1,3700.0,22.13369442]
[1732949648567,2.70262,3700.1,3700.0,22.13369442]
[1732949648770,2.70253,3700.3,3700.0,22.13369442]
[1732949649302,2.70261,3700.2,3700.0,22.13369442]
[1732949649503,2.70241,3700.4,3700.0,22.13369442]
[1732949649667,0.85804033,3700.3,3700.0,22.13369442]
[1732949649867,0.60712093,3700.3,3700.0,22.13369442]
[1732949650180,3.30965093,3700.3,3700.0,22.13369442]
[1732949650369,2.70233,3700.5,3700.0,22.13369442]
[1732949650769,2.70236,3700.5,3700.0,22.13369442]
[1732949650997,0.54429383,3700.2,3700.0,22.13369442]
[1732949651195,2.70262,3700.1,3700.0,22.13369442]
[1732949651396,2.9537692,3700.1,3700.0,22.13369442]
[1732949651641,3.5738235,3700.1,3700.0,22.13369442]
[1732949652824,3.5738235,3700.1,3696.0,1.18054538]
[1732949652825,0.9,3699.7,3696.0,1.18054538]
[1732949652971,0.7674,3697.3,3696.0,3.46332]
[1732949653166,0.7674,3697.3,3696.0,0.7577]
[1732949653410,2.0463512,3697.8,3695.9,0.7577]
[1732949653411,2.70459,3697.5,3695.9,0.7577]
[1732949653569,0.84734614,3697.5,3696.2,0.7577]
[1732949653769,0.84734614,3697.5,3696.7,2.70511]
[1732949653971,0.7674,3698.1,3697.5,2.70453]
[1732949654221,1.13010278,3699.0,3696.0,0.346346]
[1732949654222,0.54255473,3697.9,3697.2,2.70469]
[1732949654385,2.0463512,3698.5,3697.3,2.70465]
[1732949654715,0.54693541,3698.5,3697.4,0.7577]
[1732949654915,3.47105,3698.7,3697.7,2.70433]
[1732949655080,2.70373,3698.6,3697.7,2.70438]
[1732949655286,2.70373,3698.6,3697.7,3.321032]
[1732949655514,0.536822,3698.6,3697.8,2.70428]
[1732949655715,0.536822,3698.6,3697.7,0.616652]
[1732949655899,2.7038,3698.5,3697.5,2.7045]
[1732949656099,0.536822,3698.6,3697.8,2.7043]
[1732949656443,0.536822,3698.6,3697.9,2.70422]
[1732949656803,0.536822,3698.6,3697.7,2.70436]
[1732949657000,0.536822,3698.6,3697.4,0.7577]
[1732949657439,0.536822,3698.6,3697.6,2.70445]
[1732949657610,0.536822,3698.6,3697.9,2.70422]
[1732949658339,2.70391,3698.4,3697.6,2.70445]
[1732949658638,3.240562,3698.6,3697.6,2.70445]
[1732949659518,3.240562,3698.6,3697.8,2.70428]
[1732949659933,3.240562,3698.6,3697.6,2.70445]
[1732949660144,2.70393,3698.4,3697.7,0.346215]
[1732949660444,0.7674,3698.3,3697.6,2.70444]
[1732949660816,2.70404,3698.2,3697.1,0.7577]
[1732949661005,2.70422,3698.0,3697.2,2.70474]
[1732949662647,2.70404,3698.2,3697.1,0.7577]
[1732949662962,2.70443,3697.7,3697.1,0.7577]
[1732949663124,2.70438,3697.7,3697.1,0.7577]
[1732949663322,2.70423,3697.9,3697.1,3.48952753]
[1732949663528,2.70423,3697.9,3697.1,3.46248]
[1732949663944,2.70423,3697.9,3697.2,2.97452]
[1732949664257,2.70402,3698.2,3697.2,0.9135]
[1732949664469,2.7042,3698.0,3697.2,2.97454]
[1732949664671,2.70402,3698.2,3697.4,2.70453]
[1732949664839,2.7041,3698.1,3697.2,2.97454]
[1732949665223,2.70414,3698.1,3697.2,2.97454]
[1732949665522,3.47134,3698.3,3697.2,2.97454]
[1732949665523,2.70401,3698.2,3697.2,2.97454]
[1732949665723,2.70416,3698.0,3697.2,2.97454]
[1732949665967,2.70416,3698.0,3697.2,0.2698]
[1732949666256,5.40838,3698.0,3697.2,0.2698]
[1732949666458,2.70416,3698.0,3697.2,2.97453]
[1732949666690,2.70424,3697.9,3697.2,2.97453]
[1732949666874,2.7044,3697.7,3697.2,0.2698]
[1732949667024,2.70424,3697.9,3697.2,0.2698]
[1732949667227,3.53192513,3697.9,3697.2,0.2698]
[1732949667561,2.70456,3697.5,3696.7,2.70511]
[1732949667763,2.70431,3697.8,3696.4,0.7577]
[1732949667967,2.70431,3697.8,3697.1,2.7048]
[1732949668171,2.70451,3697.6,3696.8,2.70497]
[1732949668377,2.70458,3697.5,3696.8,2.70497]
[1732949668873,2.70461,3697.4,3696.7,2.70509]
[1732949669035,3.33910463,3697.6,3696.6,2.70518]
[1732949669236,2.70467,3697.4,3696.6,2.70518]
[1732949669779,2.70483,3697.1,3696.4,0.7577]
[1732949670068,0.270483,3697.1,3696.4,0.7577]
[1732949670238,2.70486,3697.1,3696.4,0.7577]
[1732949670645,2.70467,3697.3,3696.4,0.7577]
[1732949671187,2.70526,3696.6,3695.8,2.70571]
[1732949671483,2.20526,3696.6,3695.8,2.70571]
[1732949671682,2.70527,3696.5,3695.8,2.70571]
[1732949671870,2.70511,3696.7,3695.8,2.70571]
[1732949672073,2.70518,3696.6,3695.8,2.70571]
[1732949672282,2.70518,3696.6,3694.6,0.7931]
[1732949672283,2.70547,3696.3,3694.6,0.7931]